[Event "Titled Tuesday Blitz August 16 Late 2022"]
[White "Koepke, Christian"]
[Black "Stanojoski, Zvonko"]
[WhiteFideId "4655737"]
[BlackFideId "15000257"]
[WhiteElo "2188"]
[BlackElo "2364"]
[Result "0-1"]
[Round "07"]
[TimeControl "180+1"]
[Date "2022.08.18"]
[WhiteClock "0:00:00"]
[BlackClock "0:00:00"]

1. e4 {[%clk 0:00:00]}  c5 {[%clk 0:00:00]} 2. f4 {[%clk 0:00:00]}  g6 {[%clk 0:00:00]} 3. d4 {[%clk 0:00:00]}  cxd4 {[%clk 0:00:00]} 4. Qxd4 {[%clk 0:00:00]}  Nf6 {[%clk 0:00:00]} 5. e5 {[%clk 0:00:00]}  Nc6 {[%clk 0:00:00]} 6. Qd3 {[%clk 0:00:00]}  Ng8 {[%clk 0:00:00]} 7. Nc3 {[%clk 0:00:00]}  Bg7 {[%clk 0:00:00]} 8. Be3 {[%clk 0:00:00]}  d6 {[%clk 0:00:00]} 9. Nf3 {[%clk 0:00:00]}  Bg4 {[%clk 0:00:00]} 10. O-O-O {[%clk 0:00:00]}  Bxf3 {[%clk 0:00:00]} 11. gxf3 {[%clk 0:00:00]}  dxe5 {[%clk 0:00:00]} 12. Qb5 {[%clk 0:00:00]}  Qc8 {[%clk 0:00:00]} 13. fxe5 {[%clk 0:00:00]}  Bxe5 {[%clk 0:00:00]} 14. f4 {[%clk 0:00:00]}  Bxc3 {[%clk 0:00:00]} 15. bxc3 {[%clk 0:00:00]}  Nf6 {[%clk 0:00:00]} 16. h4 {[%clk 0:00:00]}  h5 {[%clk 0:00:00]} 17. Bh3 {[%clk 0:00:00]}  Qc7 {[%clk 0:00:00]} 18. f5 {[%clk 0:00:00]}  Qa5 {[%clk 0:00:00]} 19. Qxa5 {[%clk 0:00:00]}  Nxa5 {[%clk 0:00:00]} 20. fxg6 {[%clk 0:00:00]}  fxg6 {[%clk 0:00:00]} 21. Rhg1 {[%clk 0:00:00]}  Kf7 {[%clk 0:00:00]} 22. Bd4 {[%clk 0:00:00]}  Rad8 {[%clk 0:00:00]} 23. Rde1 {[%clk 0:00:00]}  Nc6 {[%clk 0:00:00]} 24. Be6+ {[%clk 0:00:00]}  Kg7 {[%clk 0:00:00]} 25. Bc5 {[%clk 0:00:00]}  Rhe8 {[%clk 0:00:00]} 26. Bf5 {[%clk 0:00:00]}  Ng4 {[%clk 0:00:00]} 27. Bxg4 {[%clk 0:00:00]}  hxg4 {[%clk 0:00:00]} 28. Rxg4 {[%clk 0:00:00]}  Rd5 {[%clk 0:00:00]} 29. Bd4+ {[%clk 0:00:00]}  e5 {[%clk 0:00:00]} 30. Be3 {[%clk 0:00:00]}  Re6 {[%clk 0:00:00]} 31. h5 {[%clk 0:00:00]}  Kh7 {[%clk 0:00:00]} 32. hxg6+ {[%clk 0:00:00]}  Rxg6 {[%clk 0:00:00]} 33. Rh1+ {[%clk 0:00:00]}  Kg7 {[%clk 0:00:00]} 34. Bh6+ {[%clk 0:00:00]}  Kf7 {[%clk 0:00:00]} 35. Rf1+ {[%clk 0:00:00]}  Rf6 {[%clk 0:00:00]} 36. Rg7+ {[%clk 0:00:00]}  Ke6 {[%clk 0:00:00]} 37. Rxf6+ {[%clk 0:00:00]}  Kxf6 {[%clk 0:00:00]} 38. Rxb7 {[%clk 0:00:00]}  Ra5 {[%clk 0:00:00]} 39. Rc7 {[%clk 0:00:00]}  Ra6 {[%clk 0:00:00]} 40. Kb2 {[%clk 0:00:00]}  Ke6 {[%clk 0:00:00]} 41. Be3 {[%clk 0:00:00]}  Kd6 {[%clk 0:00:00]} 42. Rc8 {[%clk 0:00:00]}  Ra5 {[%clk 0:00:00]} 43. Rh8 {[%clk 0:00:00]}  Kd5 {[%clk 0:00:00]} 44. Rh7 {[%clk 0:00:00]}  Rb5+ {[%clk 0:00:00]} 45. Kc1 {[%clk 0:00:00]}  a6 {[%clk 0:00:00]} 46. Rd7+ {[%clk 0:00:00]}  Ke4 {[%clk 0:00:00]} 47. Bh6 {[%clk 0:00:00]}  Na5 {[%clk 0:00:00]} 48. Rc7 {[%clk 0:00:00]}  Rb6 {[%clk 0:00:00]} 49. Kd2 {[%clk 0:00:00]}  Rd6+ {[%clk 0:00:00]} 50. Ke2 {[%clk 0:00:00]}  Rxh6 {[%clk 0:00:00]} 51. Rc5 {[%clk 0:00:00]}  Nc6 {[%clk 0:00:00]} 52. a3 {[%clk 0:00:00]}  Rh2+ {[%clk 0:00:00]} 53. Kd1 {[%clk 0:00:00]}  Ne7 {[%clk 0:00:00]} 54. Rc7 {[%clk 0:00:00]}  Nd5 {[%clk 0:00:00]} 55. Rc4+ {[%clk 0:00:00]}  Kf5 {[%clk 0:00:00]} 56. Rc5 {[%clk 0:00:00]}  Ne3+ {[%clk 0:00:00]} 57. Kc1 {[%clk 0:00:00]}  Rxc2+ {[%clk 0:00:00]} 58. Kb1 {[%clk 0:00:00]}  Rh2 {[%clk 0:00:00]} 59. Rc8 {[%clk 0:00:00]}  e4 {[%clk 0:00:00]} 60. Rf8+ {[%clk 0:00:00]}  Ke5 {[%clk 0:00:00]} 61. Re8+ {[%clk 0:00:00]}  Kf4 {[%clk 0:00:00]} 62. Rf8+ {[%clk 0:00:00]}  Nf5 {[%clk 0:00:00]} 63. Re8 {[%clk 0:00:00]}  e3 {[%clk 0:00:00]} 64. c4 {[%clk 0:00:00]}  e2 {[%clk 0:00:00]} 65. c5 {[%clk 0:00:00]}  Ne3 {[%clk 0:00:00]} 66. Rf8+ {[%clk 0:00:00]}  Ke4 {[%clk 0:00:00]} 67. Re8+ {[%clk 0:00:00]}  Kd3 {[%clk 0:00:00]} 68. Rd8+ {[%clk 0:00:00]}  Kc3 {[%clk 0:00:00]} 0-1


[Site "https://www.chess.com"]

[Event "Titled Tuesday Blitz August 16 Late 2022"]
[White "Krzywda, Andrzej"]
[Black "Ambartsumova, Karina"]
[WhiteFideId "1114565"]
[BlackFideId "4166299"]
[WhiteElo "2098"]
[BlackElo "2262"]
[Result "0-1"]
[Round "07"]
[TimeControl "180+1"]
[Date "2022.08.18"]
[WhiteClock "0:00:00"]
[BlackClock "0:00:00"]

1. d4 {[%clk 0:00:00]}  Nf6 {[%clk 0:00:00]} 2. c4 {[%clk 0:00:00]}  e6 {[%clk 0:00:00]} 3. g3 {[%clk 0:00:00]}  d5 {[%clk 0:00:00]} 4. Bg2 {[%clk 0:00:00]}  dxc4 {[%clk 0:00:00]} 5. Nf3 {[%clk 0:00:00]}  Nc6 {[%clk 0:00:00]} 6. O-O {[%clk 0:00:00]}  Rb8 {[%clk 0:00:00]} 7. e3 {[%clk 0:00:00]}  b5 {[%clk 0:00:00]} 8. Qe2 {[%clk 0:00:00]}  Bb7 {[%clk 0:00:00]} 9. b3 {[%clk 0:00:00]}  cxb3 {[%clk 0:00:00]} 10. axb3 {[%clk 0:00:00]}  a6 {[%clk 0:00:00]} 11. Bd2 {[%clk 0:00:00]}  Be7 {[%clk 0:00:00]} 12. Rc1 {[%clk 0:00:00]}  O-O {[%clk 0:00:00]} 13. Be1 {[%clk 0:00:00]}  Nb4 {[%clk 0:00:00]} 14. Bxb4 {[%clk 0:00:00]}  Bxb4 {[%clk 0:00:00]} 15. Qc2 {[%clk 0:00:00]}  c5 {[%clk 0:00:00]} 16. dxc5 {[%clk 0:00:00]}  Rc8 {[%clk 0:00:00]} 17. Nbd2 {[%clk 0:00:00]}  Rxc5 {[%clk 0:00:00]} 18. Qb2 {[%clk 0:00:00]}  Qb6 {[%clk 0:00:00]} 19. Rxc5 {[%clk 0:00:00]}  Qxc5 {[%clk 0:00:00]} 20. Rc1 {[%clk 0:00:00]}  Qe7 {[%clk 0:00:00]} 21. Qa1 {[%clk 0:00:00]}  Rd8 {[%clk 0:00:00]} 22. Nf1 {[%clk 0:00:00]}  h6 {[%clk 0:00:00]} 23. h3 {[%clk 0:00:00]}  a5 {[%clk 0:00:00]} 24. Nd4 {[%clk 0:00:00]}  Bxg2 {[%clk 0:00:00]} 25. Kxg2 {[%clk 0:00:00]}  Qb7+ {[%clk 0:00:00]} 26. Kg1 {[%clk 0:00:00]}  Rd5 {[%clk 0:00:00]} 27. Nc6 {[%clk 0:00:00]}  Qb6 {[%clk 0:00:00]} 28. Nxb4 {[%clk 0:00:00]}  axb4 {[%clk 0:00:00]} 29. Rc8+ {[%clk 0:00:00]}  Rd8 {[%clk 0:00:00]} 30. Qc1 {[%clk 0:00:00]}  Rxc8 {[%clk 0:00:00]} 31. Qxc8+ {[%clk 0:00:00]}  Kh7 {[%clk 0:00:00]} 32. Nd2 {[%clk 0:00:00]}  Qd6 {[%clk 0:00:00]} 33. Qc2+ {[%clk 0:00:00]}  g6 {[%clk 0:00:00]} 34. Nf3 {[%clk 0:00:00]}  Nd5 {[%clk 0:00:00]} 35. Qd3 {[%clk 0:00:00]}  Qc5 {[%clk 0:00:00]} 36. Ne5 {[%clk 0:00:00]}  Kg7 {[%clk 0:00:00]} 37. Nd7 {[%clk 0:00:00]}  Qc1+ {[%clk 0:00:00]} 38. Kg2 {[%clk 0:00:00]}  Qc6 {[%clk 0:00:00]} 39. Qd4+ {[%clk 0:00:00]}  f6 {[%clk 0:00:00]} 40. Nc5 {[%clk 0:00:00]}  Nxe3+ {[%clk 0:00:00]} 41. Kh2 {[%clk 0:00:00]}  Qg2# {[%clk 0:00:00]} 0-1


[Site "https://www.chess.com"]

[Event "Titled Tuesday Blitz August 16 Late 2022"]
[White "Leenhouts, Koen"]
[Black "Tatarinov, Dmitry"]
[WhiteFideId "1008439"]
[BlackFideId "24160067"]
[WhiteElo "2409"]
[BlackElo "2324"]
[Result "1-0"]
[Round "07"]
[TimeControl "180+1"]
[Date "2022.08.16"]
[WhiteClock "0:00:38"]
[BlackClock "0:01:05"]

1. e4 {[%clk 0:03:00]}  c5 {[%clk 0:02:59]} 2. Nf3 {[%clk 0:02:57]}  d6 {[%clk 0:02:57]} 3. c3 {[%clk 0:02:55]}  Nf6 {[%clk 0:02:57]} 4. h3 {[%clk 0:02:53]}  Nc6 {[%clk 0:02:55]} 5. Bd3 {[%clk 0:02:49]}  g6 {[%clk 0:02:52]} 6. Bc2 {[%clk 0:02:37]}  Bg7 {[%clk 0:02:50]} 7. O-O {[%clk 0:02:37]}  O-O {[%clk 0:02:49]} 8. d4 {[%clk 0:02:38]}  cxd4 {[%clk 0:02:48]} 9. cxd4 {[%clk 0:02:39]}  Nb4 {[%clk 0:02:47]} 10. Bb3 {[%clk 0:02:38]}  d5 {[%clk 0:02:39]} 11. e5 {[%clk 0:02:35]}  Ne4 {[%clk 0:02:39]} 12. Nc3 {[%clk 0:02:34]}  Bf5 {[%clk 0:02:35]} 13. a3 {[%clk 0:02:31]}  Nxc3 {[%clk 0:02:35]} 14. bxc3 {[%clk 0:02:31]}  Nc6 {[%clk 0:02:36]} 15. Bg5 {[%clk 0:02:22]}  Na5 {[%clk 0:02:35]} 16. Ba2 {[%clk 0:02:14]}  Rc8 {[%clk 0:02:35]} 17. Qd2 {[%clk 0:02:03]}  Nc4 {[%clk 0:02:35]} 18. Bxc4 {[%clk 0:02:03]}  Rxc4 {[%clk 0:02:35]} 19. Bh6 {[%clk 0:02:02]}  Qc7 {[%clk 0:02:28]} 20. Bxg7 {[%clk 0:02:01]}  Kxg7 {[%clk 0:02:29]} 21. Rfc1 {[%clk 0:01:39]}  Rc8 {[%clk 0:01:56]} 22. Nh4 {[%clk 0:01:30]}  Be6 {[%clk 0:01:50]} 23. Rab1 {[%clk 0:01:29]}  b6 {[%clk 0:01:50]} 24. Rb3 {[%clk 0:01:27]}  f6 {[%clk 0:01:44]} 25. f4 {[%clk 0:01:20]}  fxe5 {[%clk 0:01:36]} 26. fxe5 {[%clk 0:01:21]}  Rf8 {[%clk 0:01:27]} 27. Qe3 {[%clk 0:01:09]}  Qd7 {[%clk 0:01:22]} 28. Rb2 {[%clk 0:01:05]}  Bf5 {[%clk 0:01:20]} 29. Rf2 {[%clk 0:01:04]}  Rcc8 {[%clk 0:01:16]} 30. Rcf1 {[%clk 0:01:03]}  Be4 {[%clk 0:01:16]} 31. Rxf8 {[%clk 0:00:55]}  Rxf8 {[%clk 0:01:16]} 32. Rxf8 {[%clk 0:00:54]}  Kxf8 {[%clk 0:01:17]} 33. Nf3 {[%clk 0:00:51]}  Qf5 {[%clk 0:01:13]} 34. Nd2 {[%clk 0:00:45]}  Bd3 {[%clk 0:01:05]} 35. g4 {[%clk 0:00:38]} 1-0


[Site "https://www.chess.com"]

[Event "Titled Tuesday Blitz August 16 Late 2022"]
[White "Martic, Ivan"]
[Black "Mikhailov, Viacheslav"]
[WhiteFideId "929301"]
[BlackFideId "4187369"]
[WhiteElo "2355"]
[BlackElo "2381"]
[Result "1-0"]
[Round "07"]
[TimeControl "180+1"]
[Date "2022.08.16"]
[WhiteClock "0:01:28"]
[BlackClock "0:00:20"]

1. d4 {[%clk 0:03:00]}  Nf6 {[%clk 0:02:59]} 2. Nf3 {[%clk 0:03:01]}  g6 {[%clk 0:02:59]} 3. Nbd2 {[%clk 0:03:01]}  Bg7 {[%clk 0:03:00]} 4. e4 {[%clk 0:03:01]}  O-O {[%clk 0:03:01]} 5. Bd3 {[%clk 0:02:59]}  d6 {[%clk 0:03:01]} 6. O-O {[%clk 0:02:59]}  Bg4 {[%clk 0:03:01]} 7. c3 {[%clk 0:02:58]}  e5 {[%clk 0:03:00]} 8. h3 {[%clk 0:02:53]}  Bxf3 {[%clk 0:03:00]} 9. Nxf3 {[%clk 0:02:54]}  exd4 {[%clk 0:02:59]} 10. cxd4 {[%clk 0:02:53]}  Nc6 {[%clk 0:02:59]} 11. Re1 {[%clk 0:02:47]}  Re8 {[%clk 0:02:59]} 12. a3 {[%clk 0:02:41]}  Nd7 {[%clk 0:02:50]} 13. Be3 {[%clk 0:02:36]}  Nb6 {[%clk 0:02:50]} 14. Qd2 {[%clk 0:02:32]}  d5 {[%clk 0:02:20]} 15. e5 {[%clk 0:02:31]}  Nc4 {[%clk 0:02:21]} 16. Bxc4 {[%clk 0:02:30]}  dxc4 {[%clk 0:02:21]} 17. Rad1 {[%clk 0:02:28]}  Qd5 {[%clk 0:02:22]} 18. Bh6 {[%clk 0:02:26]}  Rad8 {[%clk 0:02:14]} 19. Qf4 {[%clk 0:02:14]}  Ne7 {[%clk 0:01:36]} 20. Bxg7 {[%clk 0:01:54]}  Kxg7 {[%clk 0:01:37]} 21. Qf6+ {[%clk 0:01:53]}  Kg8 {[%clk 0:01:36]} 22. Ng5 {[%clk 0:01:46]}  Nf5 {[%clk 0:01:12]} 23. e6 {[%clk 0:01:43]}  Nh6 {[%clk 0:00:48]} 24. Re5 {[%clk 0:01:32]}  Qxe5 {[%clk 0:00:20]} 25. exf7+ {[%clk 0:01:28]} 1-0


[Site "https://www.chess.com"]

[Event "Titled Tuesday Blitz August 16 Late 2022"]
[White "Martinez Reyes, Pedro Ramon"]
[Black "Oparin, Grigoriy"]
[WhiteFideId "3901807"]
[BlackFideId "24125890"]
[WhiteElo "2327"]
[BlackElo "2639"]
[Result "0-1"]
[Round "07"]
[TimeControl "180+1"]
[Date "2022.08.16"]
[WhiteClock "0:00:53"]
[BlackClock "0:01:55"]

1. e4 {[%clk 0:03:00]}  d6 {[%clk 0:03:00]} 2. d4 {[%clk 0:03:00]}  g6 {[%clk 0:03:01]} 3. Nc3 {[%clk 0:03:00]}  Bg7 {[%clk 0:03:02]} 4. Bg5 {[%clk 0:03:00]}  a6 {[%clk 0:03:02]} 5. Qd2 {[%clk 0:03:00]}  b5 {[%clk 0:03:02]} 6. O-O-O {[%clk 0:03:00]}  h6 {[%clk 0:03:02]} 7. Be3 {[%clk 0:02:59]}  b4 {[%clk 0:03:02]} 8. Nce2 {[%clk 0:02:58]}  a5 {[%clk 0:03:01]} 9. Kb1 {[%clk 0:02:58]}  Bb7 {[%clk 0:03:00]} 10. f3 {[%clk 0:02:58]}  Nd7 {[%clk 0:03:01]} 11. Nc1 {[%clk 0:02:55]}  e6 {[%clk 0:03:01]} 12. h4 {[%clk 0:02:55]}  Ne7 {[%clk 0:03:01]} 13. h5 {[%clk 0:02:51]}  g5 {[%clk 0:03:01]} 14. f4 {[%clk 0:02:50]}  gxf4 {[%clk 0:03:00]} 15. Bxf4 {[%clk 0:02:50]}  Bxe4 {[%clk 0:03:01]} 16. Nf3 {[%clk 0:02:42]}  Nd5 {[%clk 0:02:59]} 17. Bg3 {[%clk 0:02:43]}  a4 {[%clk 0:02:57]} 18. Bd3 {[%clk 0:02:39]}  Bxd3 {[%clk 0:02:56]} 19. Qxd3 {[%clk 0:02:40]}  a3 {[%clk 0:02:55]} 20. b3 {[%clk 0:02:30]}  Nc3+ {[%clk 0:02:55]} 21. Ka1 {[%clk 0:02:30]}  Nxd1 {[%clk 0:02:54]} 22. Rxd1 {[%clk 0:02:31]}  Nb6 {[%clk 0:02:54]} 23. Qb5+ {[%clk 0:02:26]}  Qd7 {[%clk 0:02:54]} 24. Qxb4 {[%clk 0:02:27]}  O-O {[%clk 0:02:54]} 25. Kb1 {[%clk 0:02:25]}  Nd5 {[%clk 0:02:47]} 26. Qd2 {[%clk 0:02:24]}  Rfb8 {[%clk 0:02:44]} 27. Ne2 {[%clk 0:02:24]}  Qc6 {[%clk 0:02:39]} 28. Be1 {[%clk 0:02:12]}  Qa6 {[%clk 0:02:36]} 29. Nf4 {[%clk 0:02:05]}  Nxf4 {[%clk 0:02:28]} 30. Qxf4 {[%clk 0:02:06]}  Rb5 {[%clk 0:02:28]} 31. g4 {[%clk 0:02:04]}  Rab8 {[%clk 0:02:26]} 32. Bh4 {[%clk 0:02:03]}  Qc6 {[%clk 0:02:23]} 33. Qe3 {[%clk 0:01:49]}  e5 {[%clk 0:02:08]} 34. dxe5 {[%clk 0:01:37]}  dxe5 {[%clk 0:02:05]} 35. g5 {[%clk 0:01:23]}  e4 {[%clk 0:02:04]} 36. gxh6 {[%clk 0:01:18]}  Qxh6 {[%clk 0:01:59]} 37. Bg5 {[%clk 0:01:07]}  Qxh5 {[%clk 0:01:55]} 38. Qxe4 {[%clk 0:00:53]}  Rxg5 {[%clk 0:01:55]} 0-1


[Site "https://www.chess.com"]

[Event "Titled Tuesday Blitz August 16 Late 2022"]
[White "Martinez, Shawn"]
[Black "Aldokhin, Ivan"]
[WhiteFideId "2039770"]
[BlackFideId "24115720"]
[WhiteElo "2174"]
[BlackElo "2246"]
[Result "0-1"]
[Round "07"]
[TimeControl "180+1"]
[Date "2022.08.18"]
[WhiteClock "0:00:00"]
[BlackClock "0:00:00"]

1. e4 {[%clk 0:00:00]}  c5 {[%clk 0:00:00]} 2. Nc3 {[%clk 0:00:00]}  e6 {[%clk 0:00:00]} 3. Nge2 {[%clk 0:00:00]}  Nc6 {[%clk 0:00:00]} 4. g3 {[%clk 0:00:00]}  g6 {[%clk 0:00:00]} 5. d4 {[%clk 0:00:00]}  cxd4 {[%clk 0:00:00]} 6. Nxd4 {[%clk 0:00:00]}  a6 {[%clk 0:00:00]} 7. Be3 {[%clk 0:00:00]}  Bg7 {[%clk 0:00:00]} 8. Nxc6 {[%clk 0:00:00]}  bxc6 {[%clk 0:00:00]} 9. Qd6 {[%clk 0:00:00]}  Qe7 {[%clk 0:00:00]} 10. Bc5 {[%clk 0:00:00]}  Qxd6 {[%clk 0:00:00]} 11. Bxd6 {[%clk 0:00:00]}  Ne7 {[%clk 0:00:00]} 12. Na4 {[%clk 0:00:00]}  Ra7 {[%clk 0:00:00]} 13. O-O-O {[%clk 0:00:00]}  f5 {[%clk 0:00:00]} 14. f3 {[%clk 0:00:00]}  fxe4 {[%clk 0:00:00]} 15. fxe4 {[%clk 0:00:00]}  g5 {[%clk 0:00:00]} 16. Nc5 {[%clk 0:00:00]}  Ng6 {[%clk 0:00:00]} 17. Be2 {[%clk 0:00:00]}  Be5 {[%clk 0:00:00]} 18. Bh5 {[%clk 0:00:00]}  Bxd6 {[%clk 0:00:00]} 19. Rxd6 {[%clk 0:00:00]}  Ke7 {[%clk 0:00:00]} 20. Rhd1 {[%clk 0:00:00]}  Ne5 {[%clk 0:00:00]} 21. b3 {[%clk 0:00:00]}  Rf8 {[%clk 0:00:00]} 22. R1d2 {[%clk 0:00:00]}  a5 {[%clk 0:00:00]} 23. Na4 {[%clk 0:00:00]}  Ba6 {[%clk 0:00:00]} 24. c4 {[%clk 0:00:00]}  Bxc4 {[%clk 0:00:00]} 25. Nb2 {[%clk 0:00:00]}  Bb5 {[%clk 0:00:00]} 26. Bd1 {[%clk 0:00:00]}  Rf1 {[%clk 0:00:00]} 27. Kc2 {[%clk 0:00:00]}  g4 {[%clk 0:00:00]} 28. R6d4 {[%clk 0:00:00]}  Ba6 {[%clk 0:00:00]} 29. Be2 {[%clk 0:00:00]}  Bxe2 {[%clk 0:00:00]} 30. Rxe2 {[%clk 0:00:00]}  Nf3 {[%clk 0:00:00]} 31. Ra4 {[%clk 0:00:00]}  Rh1 {[%clk 0:00:00]} 32. Nd3 {[%clk 0:00:00]}  Rxh2 {[%clk 0:00:00]} 33. Rxh2 {[%clk 0:00:00]}  Nxh2 {[%clk 0:00:00]} 34. Nf2 {[%clk 0:00:00]}  h5 {[%clk 0:00:00]} 35. e5 {[%clk 0:00:00]}  Nf1 {[%clk 0:00:00]} 36. Ne4 {[%clk 0:00:00]}  Ra8 {[%clk 0:00:00]} 37. b4 {[%clk 0:00:00]}  Rf8 {[%clk 0:00:00]} 38. bxa5 {[%clk 0:00:00]}  Rf3 {[%clk 0:00:00]} 39. a6 {[%clk 0:00:00]}  Ne3+ {[%clk 0:00:00]} 40. Kd2 {[%clk 0:00:00]}  Nd5 {[%clk 0:00:00]} 41. a7 {[%clk 0:00:00]}  Nb6 {[%clk 0:00:00]} 42. a8=Q {[%clk 0:00:00]}  Nxa8 {[%clk 0:00:00]} 43. Rxa8 {[%clk 0:00:00]}  Rf5 {[%clk 0:00:00]} 44. Ra5 {[%clk 0:00:00]}  Rf3 {[%clk 0:00:00]} 45. a4 {[%clk 0:00:00]}  Ra3 {[%clk 0:00:00]} 46. Ra7 {[%clk 0:00:00]}  c5 {[%clk 0:00:00]} 47. Nxc5 {[%clk 0:00:00]}  Rxg3 {[%clk 0:00:00]} 48. Rxd7+ {[%clk 0:00:00]}  Ke8 {[%clk 0:00:00]} 49. Rd3 {[%clk 0:00:00]}  Rg2+ {[%clk 0:00:00]} 50. Ke3 {[%clk 0:00:00]}  h4 {[%clk 0:00:00]} 51. a5 {[%clk 0:00:00]}  h3 {[%clk 0:00:00]} 52. Ra3 {[%clk 0:00:00]}  h2 {[%clk 0:00:00]} 53. a6 {[%clk 0:00:00]}  h1=Q {[%clk 0:00:00]} 54. a7 {[%clk 0:00:00]}  Rg3+ {[%clk 0:00:00]} 55. Kf4 {[%clk 0:00:00]}  Rxa3 {[%clk 0:00:00]} 56. Nxe6 {[%clk 0:00:00]}  Qf3+ {[%clk 0:00:00]} 57. Kg5 {[%clk 0:00:00]}  Ke7 {[%clk 0:00:00]} 58. Nf4 {[%clk 0:00:00]}  Qe3 {[%clk 0:00:00]} 59. Kf5 {[%clk 0:00:00]}  Rxa7 {[%clk 0:00:00]} 60. Nd5+ {[%clk 0:00:00]}  Kf8 {[%clk 0:00:00]} 61. Nxe3 {[%clk 0:00:00]}  g3 {[%clk 0:00:00]} 62. Kf4 {[%clk 0:00:00]}  Rg7 {[%clk 0:00:00]} 63. Ng2 {[%clk 0:00:00]}  Ke7 {[%clk 0:00:00]} 64. Kf3 {[%clk 0:00:00]}  Ke6 {[%clk 0:00:00]} 65. Nf4+ {[%clk 0:00:00]}  Kxe5 {[%clk 0:00:00]} 66. Ne2 {[%clk 0:00:00]}  g2 {[%clk 0:00:00]} 67. Kf2 {[%clk 0:00:00]}  Ke4 {[%clk 0:00:00]} 68. Ng1 {[%clk 0:00:00]}  Kf4 {[%clk 0:00:00]} 69. Ne2+ {[%clk 0:00:00]}  Ke4 {[%clk 0:00:00]} 70. Ng1 {[%clk 0:00:00]}  Rg6 {[%clk 0:00:00]} 71. Ne2 {[%clk 0:00:00]}  Rg8 {[%clk 0:00:00]} 72. Ng1 {[%clk 0:00:00]}  Kd3 {[%clk 0:00:00]} 73. Nh3 {[%clk 0:00:00]}  Kd2 {[%clk 0:00:00]} 74. Ng1 {[%clk 0:00:00]}  Rg7 {[%clk 0:00:00]} 75. Nh3 {[%clk 0:00:00]}  Rg8 {[%clk 0:00:00]} 76. Ng1 {[%clk 0:00:00]}  Kd1 {[%clk 0:00:00]} 77. Nh3 {[%clk 0:00:00]}  Rg6 {[%clk 0:00:00]} 78. Ng1 {[%clk 0:00:00]}  Rg5 {[%clk 0:00:00]} 79. Nh3 {[%clk 0:00:00]}  Rg4 {[%clk 0:00:00]} 80. Ng1 {[%clk 0:00:00]}  Kd2 {[%clk 0:00:00]} 81. Nf3+ {[%clk 0:00:00]}  Kd1 {[%clk 0:00:00]} 82. Ng1 {[%clk 0:00:00]}  Kc2 {[%clk 0:00:00]} 83. Nf3 {[%clk 0:00:00]}  Rg8 {[%clk 0:00:00]} 84. Ng1 {[%clk 0:00:00]}  Kd3 {[%clk 0:00:00]} 85. Nh3 {[%clk 0:00:00]}  Ke4 {[%clk 0:00:00]} 86. Ng1 {[%clk 0:00:00]}  Kf4 {[%clk 0:00:00]} 87. Ne2+ {[%clk 0:00:00]}  Kf5 {[%clk 0:00:00]} 88. Ng1 {[%clk 0:00:00]}  Kg4 {[%clk 0:00:00]} 89. Ne2 {[%clk 0:00:00]}  Kh3 {[%clk 0:00:00]} 90. Ng1+ {[%clk 0:00:00]}  Kh2 {[%clk 0:00:00]} 91. Nf3+ {[%clk 0:00:00]}  Kh1 {[%clk 0:00:00]} 92. Ng1 {[%clk 0:00:00]}  Rf8+ {[%clk 0:00:00]} 0-1


[Site "https://www.chess.com"]

[Event "Titled Tuesday Blitz August 16 Late 2022"]
[White "McBryde, Lamel"]
[Black "Romanchuk, Viktor"]
[WhiteFideId "2058596"]
[BlackFideId "14109271"]
[WhiteElo "2136"]
[BlackElo "2242"]
[Result "0-1"]
[Round "07"]
[TimeControl "180+1"]
[Date "2022.08.18"]
[WhiteClock "0:00:00"]
[BlackClock "0:00:00"]

1. Nf3 {[%clk 0:00:00]}  d5 {[%clk 0:00:00]} 2. b3 {[%clk 0:00:00]}  c6 {[%clk 0:00:00]} 3. Bb2 {[%clk 0:00:00]}  Bf5 {[%clk 0:00:00]} 4. d4 {[%clk 0:00:00]}  e6 {[%clk 0:00:00]} 5. e3 {[%clk 0:00:00]}  Nd7 {[%clk 0:00:00]} 6. Bd3 {[%clk 0:00:00]}  Bg6 {[%clk 0:00:00]} 7. Nbd2 {[%clk 0:00:00]}  Ngf6 {[%clk 0:00:00]} 8. O-O {[%clk 0:00:00]}  Bd6 {[%clk 0:00:00]} 9. Ne5 {[%clk 0:00:00]}  Qe7 {[%clk 0:00:00]} 10. a3 {[%clk 0:00:00]}  Bxd3 {[%clk 0:00:00]} 11. cxd3 {[%clk 0:00:00]}  O-O {[%clk 0:00:00]} 12. f4 {[%clk 0:00:00]}  Ne8 {[%clk 0:00:00]} 13. e4 {[%clk 0:00:00]}  f6 {[%clk 0:00:00]} 14. Nxd7 {[%clk 0:00:00]}  Qxd7 {[%clk 0:00:00]} 15. e5 {[%clk 0:00:00]}  Bc7 {[%clk 0:00:00]} 16. Rf3 {[%clk 0:00:00]}  Bb6 {[%clk 0:00:00]} 17. Rh3 {[%clk 0:00:00]}  fxe5 {[%clk 0:00:00]} 18. fxe5 {[%clk 0:00:00]}  g6 {[%clk 0:00:00]} 19. Qg4 {[%clk 0:00:00]}  Ng7 {[%clk 0:00:00]} 20. Nf3 {[%clk 0:00:00]}  Rf5 {[%clk 0:00:00]} 21. Rf1 {[%clk 0:00:00]}  Raf8 {[%clk 0:00:00]} 22. Nd2 {[%clk 0:00:00]}  Rxf1+ {[%clk 0:00:00]} 23. Nxf1 {[%clk 0:00:00]}  Rf5 {[%clk 0:00:00]} 24. Ne3 {[%clk 0:00:00]}  Rf8 {[%clk 0:00:00]} 25. b4 {[%clk 0:00:00]}  Nf5 {[%clk 0:00:00]} 26. Nf1 {[%clk 0:00:00]}  Qg7 {[%clk 0:00:00]} 27. Ne3 {[%clk 0:00:00]}  Nxe3 {[%clk 0:00:00]} 28. Rxe3 {[%clk 0:00:00]}  Rf5 {[%clk 0:00:00]} 29. Rf3 {[%clk 0:00:00]}  Rxe5 {[%clk 0:00:00]} 30. h4 {[%clk 0:00:00]}  Rf5 {[%clk 0:00:00]} 31. Re3 {[%clk 0:00:00]}  Qf6 {[%clk 0:00:00]} 32. Rf3 {[%clk 0:00:00]}  Kf7 {[%clk 0:00:00]} 33. Kh2 {[%clk 0:00:00]}  Rxf3 {[%clk 0:00:00]} 34. gxf3 {[%clk 0:00:00]}  Bc7+ {[%clk 0:00:00]} 35. Kg2 {[%clk 0:00:00]}  Qf5 {[%clk 0:00:00]} 36. Qxf5+ {[%clk 0:00:00]}  exf5 {[%clk 0:00:00]} 37. Bc1 {[%clk 0:00:00]}  Bd8 {[%clk 0:00:00]} 38. Kh3 {[%clk 0:00:00]}  Bf6 {[%clk 0:00:00]} 39. Be3 {[%clk 0:00:00]}  b5 {[%clk 0:00:00]} 40. f4 {[%clk 0:00:00]}  Bd8 {[%clk 0:00:00]} 41. Kg3 {[%clk 0:00:00]}  a5 {[%clk 0:00:00]} 42. Kh3 {[%clk 0:00:00]}  axb4 {[%clk 0:00:00]} 43. axb4 {[%clk 0:00:00]}  Be7 {[%clk 0:00:00]} 44. Bd2 {[%clk 0:00:00]}  Bd6 {[%clk 0:00:00]} 45. Be3 {[%clk 0:00:00]}  Bxb4 {[%clk 0:00:00]} 0-1


[Site "https://www.chess.com"]